fUSD/lending_fUSD_20240831
["ID","MTS","AMOUNT","RATE_DAILY","PERIOD"]
[336745987,1725096243357,-588.17,0.00044383,120]
[336745988,1725096243411,-1647.2,0.00044383,120]
[336745989,1725096243466,-1031.07,0.00044383,120]
[336745990,1725096243524,-874.76,0.00044383,120]
[336745991,1725096243580,-1806.46,0.00044383,120]
[336745992,1725096243636,-1786.04,0.00044383,120]
[336745993,1725096243690,-500.0,0.00044383,120]
[336745994,1725096243744,-796.11,0.00044383,120]
[336745995,1725096243798,-4060.92,0.00044383,120]
[336745996,1725096243855,-1529.27,0.00044383,120]
[336745997,1725096243910,-2246.61,0.00044383,120]
[336745998,1725096243967,-764.48,0.00044383,120]
[336745999,1725096244022,-2118.38,0.00044383,120]
[336746000,1725096244075,-817.1,0.00044383,120]
[336746001,1725096244130,-2580.32,0.00044383,120]
[336746002,1725096244183,-602.83,0.00044383,120]
[336746003,1725096244236,-2730.58,0.00044383,120]
[336746004,1725096244288,-567.84,0.00044383,120]
[336746005,1725096244340,-906.16,0.00044383,120]
[336746006,1725096244392,-881.66,0.00044383,120]
[336746007,1725096244445,-6580.53,0.00044383,120]
[336746008,1725096244498,-500.0,0.00044383,120]
[336746009,1725096244553,-776.12,0.00044383,120]
[336746010,1725096244608,-3133.75,0.00044383,120]
[336746011,1725096244663,-1318.72,0.00044383,120]
[336746012,1725096244719,-512.71,0.00044383,120]
[336746013,1725096244773,-500.0,0.00044383,120]
[336746014,1725096244825,-3220.73,0.00044383,120]
[336746015,1725096244878,-924.45,0.00044383,120]
[336746016,1725096244932,-1223.28,0.00044383,120]
[336746017,1725096244988,-1129.99,0.00044383,120]
[336746018,1725096245044,-500.0,0.00044383,120]
[336746019,1725096245098,-608.6,0.00044383,120]
[336746020,1725096245155,-1166.67,0.00044383,120]
[336746021,1725096245208,-500.0,0.00044383,120]
[336746022,1725096245263,-18433.68,0.00044383,120]
[336746023,1725096245317,-1392.73,0.00044383,120]
[336746024,1725096245369,-1402.0,0.00044383,120]
[336746025,1725096245422,-9146.0,0.00044383,120]
[336746026,1725096245475,-151.0,0.00044603,120]
[336746027,1725096245530,-2142.76,0.00044931,120]
[336746028,1725096245581,-2187.81,0.00044931,120]
[336746029,1725096245634,-500.0,0.00044931,120]
[336746030,1725096245688,-500.0,0.00044931,120]
[336746031,1725096245740,-219.6315939,0.00044931,120]
[336746032,1725096245792,-500.0,0.00044931,120]
[336746033,1725096245844,-591.39,0.00044931,120]
[336746034,1725096245898,-628.61,0.00044931,120]
[336746035,1725096245950,-787.27,0.00044931,120]
[336746036,1725096246001,-500.0,0.00044931,120]
[336746037,1725096246052,-500.0,0.00044931,120]
[336746038,1725096246102,-1054.25,0.00044931,120]
[336746039,1725096246150,-590.31,0.00044931,120]
[336746040,1725096246203,-500.0,0.00044931,120]
[336746041,1725096246255,-761.33,0.00044931,120]
[336746042,1725096246308,-500.0,0.00044931,120]
[336746043,1725096246358,-500.0,0.00044931,120]
[336746044,1725096246408,-500.0,0.00044931,120]
[336746045,1725096246458,-728.45,0.00044931,120]
[336746046,1725096246511,-329.74689868,0.00044931,120]
[336746047,1725096246563,-602.57,0.00044931,120]
[336746048,1725096246617,-500.0,0.00044931,120]
[336746049,1725096246672,-1536.81,0.00044931,120]
[336746050,1725096246727,-500.0,0.00044931,120]
[336746051,1725096246787,-718.45,0.00044931,120]
[336746052,1725096246842,-613.86,0.00044931,120]
[336746053,1725096246896,-737.5,0.00044931,120]
[336746054,1725096246950,-500.0,0.00044931,120]
[336746055,1725096247003,-500.0,0.00044931,120]
[336746056,1725096247056,-500.0,0.00044931,120]
[336746057,1725096247108,-500.0,0.00044931,120]
[336746058,1725096247162,-500.0,0.00044931,120]
[336746059,1725096247214,-854.52,0.00044931,120]
[336746060,1725096247265,-500.0,0.00044931,120]
[336746061,1725096247316,-500.0,0.00044931,120]
[336746062,1725096247365,-500.0,0.00044931,120]
[336746063,1725096247413,-500.0,0.00044931,120]
[336746064,1725096247461,-500.0,0.00044931,120]
[336746065,1725096247516,-500.0,0.00044931,120]
[336746066,1725096247570,-504.81,0.00044931,120]
[336746067,1725096247624,-500.0,0.00044931,120]
[336746068,1725096247674,-577.66,0.00044931,120]
[336746069,1725096247726,-500.0,0.00044931,120]
[336746070,1725096247781,-537.13,0.00044931,120]
[336746071,1725096247831,-639.49,0.00044931,120]
[336746072,1725096248058,-500.0,0.00044931,120]
[336746073,1725096248111,-369.78758175,0.00044931,120]
[336746074,1725096248164,-558.16,0.00044931,120]
[336746075,1725096248217,-500.0,0.00044931,120]
[336746076,1725096248270,-606.69,0.00044931,120]
[336746077,1725096248321,-500.0,0.00044931,120]
[336746078,1725096248372,-500.0,0.00044931,120]
[336746079,1725096248423,-500.0,0.00044931,120]
[336746080,1725096248475,-500.06,0.00044931,120]
[336746081,1725096248526,-533.19,0.00044931,120]
[336746082,1725096248578,-781.37,0.00044931,120]
[336746083,1725096248633,-541.93,0.00044931,120]
[336746084,1725096248687,-541.84,0.00044931,120]
[336746085,1725096248742,-500.0,0.00044931,120]
[336746086,1725096248795,-592.70930527,0.00044931,120]
[336746087,1725096248851,-500.0,0.00044931,120]
[336746088,1725096248906,-500.0,0.00044931,120]
[336746089,1725096248959,-600.0,0.00044931,120]
[336746090,1725096249013,-500.0,0.00044931,120]
[336746091,1725096249065,-500.0,0.00044931,120]
[336746092,1725096249117,-838.09,0.00044931,120]
[336746093,1725096249171,-500.0,0.00044931,120]
[336746094,1725096249222,-509.55,0.00044931,120]
[336746095,1725096249272,-500.0,0.00044931,120]
[336746096,1725096249321,-500.0,0.00044931,120]
[336746097,1725096249370,-708.98,0.00044931,120]
[336746098,1725096249418,-500.0,0.00044931,120]
[336746099,1725096249465,-243.09471538,0.00044931,120]
[336746100,1725096249514,-500.0,0.00044931,120]
[336746101,1725096249563,-1509.98,0.00044931,120]
[336746102,1725096249617,-558.78,0.00044931,120]
[336746103,1725096249667,-1624.06,0.00044931,120]
[336746104,1725096249721,-500.0,0.00044931,120]
[336746105,1725096249780,-640.25,0.00044931,120]
[336746106,1725096249837,-934.21,0.00044931,120]
[336746107,1725096249890,-500.0,0.00044931,120]
[336746108,1725096249958,-969.88,0.00044931,120]
[336746109,1725096250014,-791.62,0.00044931,120]
[336746110,1725096250073,-915.31,0.00044931,120]
[336746111,1725096250131,-1688.13,0.00044931,120]
[336746112,1725096250184,-616.66,0.00044931,120]
[336746113,1725096250235,-777.63,0.00044931,120]
[336746114,1725096250285,-1310.98,0.00044931,120]
[336746115,1725096250330,-875.1,0.00044931,120]
[336746116,1725096250377,-1032.09,0.00044931,120]
[336746117,1725096250425,-2876.73,0.00044931,120]
[336746118,1725096250473,-761.85,0.00044931,120]
[336746119,1725096250522,-1344.34,0.00044931,120]
[336746120,1725096250571,-500.0,0.00044931,120]
[336746121,1725096250622,-4839.39,0.00044931,120]
[336746122,1725096250673,-1399.41,0.00044931,120]
[336746123,1725096250722,-500.0,0.00044931,120]
[336746124,1725096250770,-588.48,0.00044931,120]
[336746125,1725096250815,-500.0,0.00044931,120]
[336746126,1725096250864,-216.11891478,0.00044931,120]
[336746127,1725096250912,-559.89,0.00044931,120]
[336746128,1725096250960,-500.0,0.00044931,120]
[336746129,1725096251007,-500.0,0.00044931,120]
[336746130,1725096251054,-511.74,0.00044931,120]
[336746131,1725096251104,-644.7256255,0.00044931,120]
[336746132,1725096251149,-1112.54,0.00044931,120]
[336746133,1725096251192,-500.0,0.00044931,120]
[336746134,1725096251234,-508.19,0.00044931,120]
[336746135,1725096251279,-2558.51,0.00044931,120]
[336746136,1725096251322,-694.5,0.00044931,120]
[336746137,1725096251369,-500.0,0.00044931,120]
[336746138,1725096251412,-923.73,0.00044931,120]
[336746139,1725096251460,-1446.32,0.00044931,120]
[336746140,1725096251508,-500.0,0.00044931,120]
[336746141,1725096251555,-1350.52,0.00044931,120]
[336746142,1725096251607,-500.0,0.00044931,120]
[336746143,1725096251660,-1170.8,0.00044931,120]
[336746144,1725096251711,-618.91,0.00044931,120]
[336746145,1725096251765,-500.0,0.00044931,120]
[336746146,1725096251816,-500.0,0.00044931,120]
[336746147,1725096251867,-3324.83,0.00044931,120]
[336746148,1725096251918,-1273.21,0.00044931,120]
[336746149,1725096251970,-500.0,0.00044931,120]
[336746150,1725096252023,-1114.0,0.00044931,120]
[336746151,1725096252076,-1256.51,0.00044931,120]
[336746152,1725096252129,-500.0,0.00044931,120]
[336746153,1725096252180,-1913.46,0.00044931,120]
[336746154,1725096252232,-1221.34,0.00044931,120]
[336746155,1725096252285,-642.66862394,0.00044931,120]
[336746156,1725096252335,-1287.93,0.00044931,120]
[336746157,1725096252382,-500.0,0.00044931,120]
[336746158,1725096252430,-500.0,0.00044931,120]
[336746159,1725096252477,-925.06,0.00044931,120]
[336746160,1725096252525,-500.0,0.00044931,120]
[336746161,1725096252574,-548.88,0.00044931,120]
[336746162,1725096252624,-775.46,0.00044931,120]
[336746163,1725096252675,-1018.59,0.00044931,120]
[336746164,1725096252723,-540.19,0.00044931,120]
[336746165,1725096252774,-1162.77,0.00044931,120]
[336746166,1725096252821,-256.97859752,0.00044931,120]
[336746167,1725096252869,-2066.04,0.00044931,120]
[336746168,1725096252917,-500.0,0.00044931,120]
[336746169,1725096252966,-500.0,0.00044931,120]
[336746170,1725096253015,-500.0,0.00044931,120]
[336746171,1725096253064,-721.89,0.00044931,120]
[336746172,1725096253111,-666.61,0.00044931,120]
[336746173,1725096253158,-1547.45,0.00044931,120]
[336746174,1725096253203,-598.25,0.00044931,120]
[336746175,1725096253246,-558.12,0.00044931,120]
[336746176,1725096253459,-643.08,0.00044931,120]
[336746177,1725096253513,-585.19,0.00044931,120]
[336746178,1725096253563,-2179.7,0.00044931,120]
[336746179,1725096253613,-777.19,0.00044931,120]
[336746180,1725096253663,-2274.45,0.00044931,120]
[336746181,1725096253711,-635.42,0.00044931,120]
[336746182,1725096253761,-868.12,0.00044931,120]
[336746183,1725096253817,-500.0,0.00044931,120]
[336746184,1725096253870,-1151.6,0.00044931,120]
[336746185,1725096253922,-562.37,0.00044931,120]
[336746186,1725096253974,-1582.23,0.00044931,120]
[336746187,1725096254029,-867.17,0.00044931,120]
[336746188,1725096254082,-1256.91,0.00044931,120]
[336746189,1725096254132,-500.0,0.00044931,120]
[336746190,1725096254182,-555.8523896,0.00044931,120]
[336746191,1725096254232,-500.0,0.00044931,120]
[336746192,1725096254282,-2186.79,0.00044931,120]
[336746193,1725096254330,-735.6,0.00044931,120]
[336746194,1725096254379,-680.15,0.00044931,120]
[336746195,1725096254428,-4740.51,0.00044931,120]
[336746196,1725096254479,-500.0,0.00044931,120]
[336746197,1725096254533,-786.8,0.00044931,120]
[336746198,1725096254586,-601.44,0.00044931,120]
[336746199,1725096254641,-12860.68,0.00044931,120]
[336746200,1725096254693,-834.67,0.00044931,120]
[336746201,1725096254746,-500.0,0.00044931,120]
[336746202,1725096254797,-500.0,0.00044931,120]
[336746203,1725096254846,-954.8,0.00044931,120]
[336746204,1725096254897,-961.43,0.00044931,120]
[336746205,1725096254947,-997.06,0.00044931,120]
[336746206,1725096254998,-507.58,0.00044931,120]
[336746207,1725096255049,-996.39,0.00044931,120]
[336746208,1725096255097,-599.25642648,0.00044931,120]
[336746209,1725096255146,-615.17,0.00044931,120]
[336746210,1725096255195,-553.28480242,0.00044931,120]
[336746211,1725096255243,-510.32,0.00044931,120]
[336746212,1725096255293,-4187.61,0.00044931,120]
[336746213,1725096255343,-941.17,0.00044931,120]
[336746214,1725096255394,-10782.5,0.00044931,120]
[336746215,1725096255444,-591.64,0.00044931,120]
[336746216,1725096255495,-218.41073933,0.00044931,120]
[336746217,1725096255547,-500.0,0.00044931,120]
[336746218,1725096255597,-500.0,0.00044931,120]
[336746219,1725096255648,-519.14,0.00044931,120]
[336746220,1725096255698,-675.23,0.00044931,120]
[336746221,1725096255749,-653.02,0.00044931,120]
[336746222,1725096255803,-500.0,0.00044931,120]
[336746223,1725096255856,-500.0,0.00044931,120]
[336746224,1725096255912,-1228.8,0.00044931,120]
[336746225,1725096255966,-557.32,0.00044931,120]
[336746226,1725096256018,-1015.85,0.00044931,120]
[336746227,1725096256069,-1823.12,0.00044931,120]
[336746228,1725096256117,-2186.95,0.00044931,120]
[336746229,1725096256164,-652.33,0.00044931,120]
[336746230,1725096256210,-702.23,0.00044931,120]
[336746231,1725096256256,-2082.61,0.00044931,120]
[336746232,1725096256303,-500.0,0.00044931,120]
[336746233,1725096256351,-500.0,0.00044931,120]
[336746234,1725096256400,-500.0,0.00044931,120]
[336746235,1725096256447,-694.0,0.00044931,120]
[336746236,1725096256500,-997.15,0.00044931,120]
[336746237,1725096256551,-604.52,0.00044931,120]
[336746238,1725096256601,-501.24,0.00044931,120]
[336746239,1725096256651,-831.62,0.00044931,120]
[336746240,1725096256700,-835.51,0.00044931,120]
[336746241,1725096256748,-762.21,0.00044931,120]
[336746242,1725096256795,-6300.15,0.00044931,120]
[336746243,1725096256842,-887.91,0.00044931,120]
[336746244,1725096256890,-593.65,0.00044931,120]
[336746245,1725096256937,-4114.25,0.00044931,120]
[336746246,1725096256985,-636.31,0.00044931,120]
[336746247,1725096257035,-564.38,0.00044931,120]
[336746248,1725096257085,-11442.62,0.00044931,120]
[336746249,1725096257135,-500.0,0.00044931,120]
[336746250,1725096257183,-1161.84,0.00044931,120]
[336746251,1725096257230,-1654.38,0.00044931,120]
[336746252,1725096257277,-588.17,0.00044931,120]
[336746253,1725096257326,-1647.2,0.00044931,120]
[336746254,1725096257373,-1031.07,0.00044931,120]
[336746255,1725096257419,-874.76,0.00044931,120]
[336746256,1725096257469,-1806.46,0.00044931,120]
[336746257,1725096257519,-1786.04,0.00044931,120]
[336746258,1725096257568,-500.0,0.00044931,120]
[336746259,1725096257619,-796.11,0.00044931,120]
[336746260,1725096257673,-4060.92,0.00044931,120]
[336746261,1725096257729,-1529.27,0.00044931,120]
[336746262,1725096257783,-2246.61,0.00044931,120]
[336746263,1725096257836,-764.48,0.00044931,120]
[336746264,1725096257891,-2118.38,0.00044931,120]
[336746265,1725096257947,-817.1,0.00044931,120]
[336746266,1725096258001,-2580.32,0.00044931,120]
[336746267,1725096258055,-602.83,0.00044931,120]
[336746268,1725096258107,-2730.58,0.00044931,120]
[336746269,1725096258159,-567.84,0.00044931,120]
[336746270,1725096258209,-906.16,0.00044931,120]
[336746271,1725096258257,-881.66,0.00044931,120]
[336746272,1725096258306,-6580.53,0.00044931,120]
[336746273,1725096258355,-500.0,0.00044931,120]
[336746274,1725096258406,-776.12,0.00044931,120]
[336746275,1725096258455,-3133.75,0.00044931,120]
[336746276,1725096258506,-1318.72,0.00044931,120]
[336746277,1725096258556,-512.71,0.00044931,120]
[336746278,1725096258605,-500.0,0.00044931,120]
[336746279,1725096258654,-3220.73,0.00044931,120]
[336746280,1725096258873,-924.45,0.00044931,120]
[336746281,1725096258926,-1223.28,0.00044931,120]
[336746282,1725096258979,-1129.99,0.00044931,120]
[336746283,1725096259031,-500.0,0.00044931,120]
[336746284,1725096259081,-608.6,0.00044931,120]
[336746285,1725096259132,-1166.67,0.00044931,120]
[336746286,1725096259182,-500.0,0.00044931,120]
[336746287,1725096259232,-18433.68,0.00044931,120]
[336746288,1725096259284,-1392.73,0.00044931,120]
[336746289,1725096259334,-1402.0,0.00044931,120]
[336746290,1725096259384,-9146.0,0.00044931,120]
[336746291,1725096259438,-50000.0,0.00045,45]
[336746292,1725096259489,-200.0,0.00045,120]
[336746293,1725096259541,-949.60804202,0.00045,120]
[336746294,1725096259592,-150.0,0.00045,85]
[336746295,1725096259644,-1000.0,0.00045,120]
[336746296,1725096259698,-222.44199576,0.00045,120]
[336746297,1725096259750,-1602.16980786,0.00045,90]
[336746298,1725096259803,-500000.0,0.00045,120]
[336746299,1725096259853,-674.81395303,0.00045,120]
[336746300,1725096259904,-880.56875531,0.00045,120]
[336746301,1725096259954,-538.51118656,0.00045,120]
[336746302,1725096260004,-2615.96359093,0.00045,120]
[336746303,1725096260053,-163.55214862,0.00045,120]
[336746304,1725096260103,-120493.60002857,0.00045,120]
[336746305,1725096291053,155.73,0.00010959,2]
[336746306,1725096336043,300.0,9.5e-05,2]
[336746322,1725096478619,2149.78488002,0.0001,2]
[336746323,1725096492545,494.55,0.00010959,2]
[336746332,1725096572142,290.54177764,0.000109,2]
[336746333,1725096576171,528.1034647,0.000109,2]
[336746339,1725096603627,171.85912976,0.000109,2]
[336746355,1725096632339,-300.0,0.00010972,2]
[336746356,1725096632349,-160.095168,0.00010973,2]
[336746357,1725096632359,-158.0939784,0.00010973,2]
[336746358,1725096632369,-160.095168,0.00010973,2]
[336746359,1725096632379,-37.87249338,0.00010973,2]
[336746360,1725096632391,-122.22267462,0.00010973,2]
[336746361,1725096632401,-158.50280942,0.00010973,2]
[336746362,1725096632411,-43.50883786,0.00010973,2]
[336746363,1725096632424,-116.58633014,0.00010973,2]
[336746364,1725096632434,-158.0939784,0.00010973,2]
[336746365,1725096632444,-158.0939784,0.00010973,2]
[336746366,1725096632454,-11527.42038275,0.00010997,2]
[336746367,1725096632468,-10090.64630671,0.00010997,2]
[336746368,1725096632478,-150.0,0.00010999,2]
[336746369,1725096632488,-255800.43798581,0.00011,2]
[336746370,1725096632500,-347.40099992,0.00011,2]
[336746371,1725096632516,-6510.898581,0.00011,2]
[336746372,1725096632529,-1047.0,0.00011,2]
[336746373,1725096632697,201.15137705,0.000109,2]
[336746379,1725096638325,-329.5347003,0.00011,2]
[336746381,1725096638383,-78933.182136,0.00011,2]
[336746382,1725096638443,-332.98204402,0.00011,2]
[336746383,1725096638456,-1601.34094217,0.00011,2]
[336746384,1725096638501,-1597.91478932,0.00011,2]
[336746385,1725096638513,-6833.76169356,0.00011,2]
[336746386,1725096638524,-6050.72207205,0.00011,2]
[336746387,1725096638535,-1328.43202575,0.00011,2]
[336746388,1725096638615,-621.217104,0.00011,2]
[336746423,1725096640380,-403.47012699,0.00011,2]
[336746424,1725096640391,-1560.09201501,0.00011,2]
[336746425,1725096640401,-655.39084269,0.00011,2]
[336746426,1725096640517,-373.44516669,0.00011,2]
[336746427,1725096640536,-628.85,0.00011,2]
[336746428,1725096640548,-480.758087,0.00011,2]
[336746429,1725096640561,-500.0,0.00011,2]
[336746430,1725096640573,-1439.21534214,0.00011,2]
[336746431,1725096640585,-181044.37338142,0.00011,2]
[336746432,1725096640597,-4043084.20934253,0.00011,2]
[336746433,1725096640606,-2500.0,0.00011,2]
[336746434,1725096640618,-2206.29460935,0.000118,2]
[336746435,1725096640629,-608.06,0.00012,2]
[336746436,1725096640639,-500.0,0.00013,2]
[336746437,1725096640651,-500.0,0.00014,2]
[336746438,1725096640662,-500.0,0.00015,5]
[336746439,1725096640673,-500.0,0.00016,5]
[336746440,1725096640683,-499.99,0.00016118,2]
[336746443,1725096640694,-150.0,0.00016119,2]
[336746444,1725096640703,-500.0,0.00017,5]
[336746447,1725096640714,-500.0,0.00018,7]
[336746448,1725096640723,-810.0,0.00018607,2]
[336746450,1725096640733,-1078.0,0.00018607,2]
[336746453,1725096640743,-1171.714,0.00018615,2]
[336746455,1725096640754,-804.0,0.00018615,2]
[336746457,1725096640763,-3322.0,0.00018615,2]
[336746459,1725096640773,-3727.0,0.00018615,2]
[336746461,1725096640785,-8390.471,0.00018615,2]
[336746463,1725096640795,-930.0,0.00018615,2]
[336746465,1725096640807,-557.0,0.00018615,2]
[336746467,1725096640816,-500.0,0.00019,7]
[336746469,1725096640825,-505.04,0.00019471,2]
[336746471,1725096640834,-18092.6,0.000195,2]
[336746473,1725096640844,-150.39,0.00019895,2]
[336746475,1725096640853,-500.0,0.0002,9]
[336746477,1725096640866,-5141.0,0.00021,3]
[336746479,1725096640876,-1007.56,0.00021,2]
[336746481,1725096640885,-287.189953,0.00021,2]
[336746483,1725096640894,-500.0,0.00021,9]
[336746485,1725096640903,-500.0,0.000213,2]
[336746487,1725096640912,-160.095168,0.000213,2]
[336746489,1725096640921,-160.095168,0.000213,2]
[336746490,1725096640930,-200.0,0.00021336,2]
[336746492,1725096640938,-1627.44,0.00021508,2]
[336746494,1725096640947,-320.0,0.00021519,2]
[336746496,1725096640957,-550.32714,0.00021533,2]
[336746498,1725096640966,-159.69493008,0.00021533,2]
[336746500,1725096640975,-160.095168,0.00021533,2]
[336746502,1725096640986,-505.04,0.00021735,2]
[336746504,1725096640996,-1000.0,0.00021848,2]
[336746506,1725096641006,-500.0,0.00022,9]
[336746508,1725096641015,-1852.42,0.00022205,2]
[336746510,1725096641025,-160.095168,0.0002226,2]
[336746512,1725096641034,-160.095168,0.0002226,2]
[336746514,1725096641043,-1007.56,0.0002237,2]
[336746516,1725096641052,-250.0,0.00022387,2]
[336746518,1725096641062,-159.03,0.00022405,30]
[336746520,1725096641071,-200.0,0.00022425,2]
[336746522,1725096641081,-314.91,0.00022463,2]
[336746524,1725096641090,-1000.0,0.00022466,2]
[336746526,1725096641100,-250.0,0.00022571,2]
[336746527,1725096641109,-150.39,0.00022635,2]
[336746529,1725096641118,-250.0,0.00022635,2]
[336746531,1725096641127,-2751.0,0.00022637,2]
[336746533,1725096641136,-208.26,0.00022637,2]
[336746535,1725096641147,-1570.10701413,0.00022746,2]
[336746537,1725096641158,-940.36,0.0002291,2]
[336746539,1725096641167,-940.36,0.00022916,2]
[336746541,1725096641177,-940.36,0.00022922,2]
[336746543,1725096641187,-940.36,0.00022928,2]
[336746545,1725096641198,-940.36,0.00022934,2]
[336746547,1725096641207,-940.36,0.0002294,2]
[336746549,1725096641221,-940.36,0.00022946,2]
[336746551,1725096641231,-940.36,0.00022952,2]
[336746553,1725096641240,-940.36,0.00022958,2]
[336746555,1725096641250,-940.36,0.00022964,2]
[336746557,1725096641260,-940.36,0.0002297,2]
[336746559,1725096641269,-940.36,0.00022976,2]
[336746561,1725096641277,-940.36,0.00022982,2]
[336746563,1725096641286,-940.36,0.00022988,2]
[336746564,1725096641295,-940.36,0.00022994,2]
[336746567,1725096641306,-200.0,0.00023,2]
[336746569,1725096641315,-150.0,0.00023,2]
[336746571,1725096641327,-500.0,0.00023,11]
[336746573,1725096641337,-940.36,0.00023,2]
[336746575,1725096641349,-940.36,0.00023006,2]
[336746577,1725096641360,-940.36,0.00023012,2]
[336746579,1725096641370,-940.36,0.00023019,2]
[336746581,1725096641380,-940.36,0.00023025,2]
[336746583,1725096641389,-400.0,0.00023186,2]
[336746585,1725096641398,-1000.0,0.0002334,2]
[336746587,1725096641407,-18092.6,0.000234,7]
[336746589,1725096641416,-3261.62,0.00023442,2]
[336746591,1725096641426,-300.0,0.00023656,2]
[336746593,1725096641435,-1007.56,0.0002374,2]
[336746595,1725096641444,-505.04,0.00023999,2]
[336746596,1725096641453,-500.0,0.00024,2]
[336746598,1725096641462,-500.0,0.00024,2]
[336746600,1725096641471,-500.0,0.00024,2]
[336746602,1725096641480,-176.21,0.00024,2]
[336746604,1725096641490,-474.11,0.00024,2]
[336746606,1725096641499,-500.0,0.00024,11]
[336746608,1725096641508,-167.0,0.00024139,2]
[336746610,1725096641517,-320.0,0.00024209,2]
[336746612,1725096641527,-3768.932,0.0002479,2]
[336746614,1725096641535,-35694.4368,0.0002479,2]
[336746615,1725096641544,-166.3799,0.0002479,2]
[336746616,1725096641554,-370.2462,0.00024794,2]
[336746617,1725096641564,-1000.0,0.000248,2]
[336746618,1725096641573,-213.0,0.000248,2]
[336746619,1725096641582,-150.0,0.000248,2]
[336746620,1725096641592,-156.69152685,0.00024856,2]
[336746621,1725096641601,-1246.3175,0.00024865,2]
[336746622,1725096641610,-156.69152685,0.00024878,2]
[336746623,1725096641619,-164.84,0.0002488,3]
[336746624,1725096641628,-180.0,0.00024889,2]
[336746625,1725096641637,-3314.5799,0.0002489,2]
[336746626,1725096641646,-100000.0,0.0002489,2]
[336746628,1725096641655,-1302.1469,0.0002489,2]
[336746629,1725096641664,-259.68524695,0.0002489,8]
[336746631,1725096641672,-266.59455713,0.0002489,2]
[336746633,1725096641681,-266.59455708,0.00024891,2]
[336746635,1725096641690,-266.59455708,0.00024893,2]
[336746637,1725096641699,-266.59455708,0.00024894,2]
[336746639,1725096641708,-266.59455708,0.00024896,2]
[336746641,1725096641716,-266.59455708,0.00024897,2]
[336746643,1725096641725,-266.59455708,0.00024899,2]
[336746645,1725096641734,-1999.7004,0.000249,2]
[336746647,1725096641743,-199.73100076,0.000249,2]
[336746649,1725096641752,-153.15849413,0.000249,2]
[336746651,1725096641762,-261.5692,0.000249,2]
[336746653,1725096641771,-156.69152685,0.000249,2]
[336746654,1725096641780,-266.59455708,0.000249,2]
[336746656,1725096641789,-300.0,0.00024913,5]
[336746658,1725096641798,-1000.0,0.0002493,2]
[336746660,1725096641807,-2500.0,0.00024934,5]
[336746662,1725096641817,-2500.0,0.00024937,5]
[336746664,1725096641827,-2500.0,0.00024965,5]
[336746666,1725096641836,-160.095168,0.00024973,2]
[336746668,1725096641845,-162.0,0.00024973,2]
[336746669,1725096641854,-300.17844,0.00024973,2]
[336746671,1725096641863,-158.0939784,0.00024973,2]
[336746673,1725096641873,-160.095168,0.00024973,2]
[336746675,1725096641882,-160.095168,0.00024973,2]
[336746677,1725096641891,-200.11896,0.00024973,2]
[336746679,1725096641900,-160.095168,0.00024973,2]
[336746680,1725096641909,-479.49728201,0.00024973,2]